bitfinex-derivatives/quotes_BTCF0:USTF0_20251030
["timestamp","ask_amount","ask_price","bid_price","bid_amount"]
[1761802960532,0.2462,109700.0,109690.0,0.78734611]
[1761802961341,0.29855,109700.0,109690.0,0.76338478]
[1761802961644,0.29355,109700.0,109690.0,0.76338478]
[1761802961845,0.29355,109700.0,109690.0,0.76438478]
[1761802962447,0.29455,109700.0,109690.0,0.76338478]
[1761802964344,0.01606,109740.0,109720.0,0.0911368]
[1761802964544,0.01606,109740.0,109730.0,0.29728802]
[1761802964847,0.34298,109740.0,109730.0,2.47084276]
[1761802965037,0.34298,109740.0,109730.0,0.97084276]
[1761802965038,0.39533,109740.0,109730.0,0.97084276]
[1761802965240,0.39533,109740.0,109730.0,0.73585752]
[1761802965643,0.39533,109740.0,109730.0,2.23585752]
[1761802966044,0.39533,109740.0,109730.0,2.2647041]
[1761802966233,0.39533,109740.0,109730.0,2.23585752]
[1761802966440,0.39533,109740.0,109730.0,0.76471325]
[1761802966842,0.39533,109740.0,109730.0,2.26471325]
[1761802967038,0.39533,109740.0,109730.0,0.76471325]
[1761802967235,0.39533,109740.0,109730.0,0.73585752]
[1761802967541,0.39533,109740.0,109730.0,0.76472471]
[1761802967939,0.39733,109740.0,109730.0,0.7738737]
[1761802968438,0.39733,109740.0,109730.0,0.74500651]
[1761802968643,0.60148482,109740.0,109730.0,0.37505752]
[1761802968848,0.39533,109740.0,109730.0,0.37505752]
[1761802969048,0.60148482,109740.0,109730.0,0.37505752]
[1761802969255,0.3608,109760.0,109730.0,0.59016685]
[1761802969447,0.37076,109760.0,109750.0,0.56695482]
[1761802969655,0.01606,109760.0,109750.0,0.58121234]
[1761802969960,0.39585,109760.0,109750.0,0.40363552]
[1761802970141,0.39585,109760.0,109750.0,0.04283552]
[1761802971258,0.39585,109760.0,109750.0,0.09075818]
[1761802971450,0.61597,109760.0,109750.0,0.09075818]
[1761802971650,0.06841,109760.0,109750.0,0.09075818]
[1761802971844,0.62597,109760.0,109750.0,0.09075818]
[1761802972044,0.62597,109760.0,109750.0,0.04283552]
[1761802972246,0.62597,109760.0,109750.0,0.07496265]
[1761802972759,0.30141,109760.0,109750.0,0.07496265]
[1761802972964,0.62889,109760.0,109750.0,0.07496265]
[1761802973457,0.62889,109760.0,109750.0,0.09901418]
[1761802973666,0.30141,109760.0,109750.0,0.09901418]
[1761802973960,0.62881,109760.0,109750.0,0.09901418]
[1761802974359,0.62881,109760.0,109750.0,0.06688705]
[1761802975843,0.27411,109760.0,109750.0,0.06688705]
[1761802976161,0.27411,109760.0,109750.0,0.79616836]
[1761802976162,0.39845,109760.0,109750.0,0.79616836]
[1761802976360,0.3608,109810.0,109750.0,1.11191084]
[1761802976664,0.38055,109810.0,109800.0,0.3608]
[1761802976857,0.38055,109810.0,109800.0,0.389378]
[1761802977055,0.38055,109810.0,109800.0,0.41334181]
[1761802977462,0.38327,109810.0,109800.0,0.41334181]
[1761802977662,0.72788018,109810.0,109800.0,0.41334181]
[1761802977961,0.72788018,109810.0,109800.0,0.028578]
[1761802978264,0.05235,109810.0,109800.0,0.028578]
[1761802978464,0.38055,109810.0,109800.0,0.389378]
[1761802978768,0.38327,109810.0,109800.0,0.389378]
[1761802978946,0.38055,109810.0,109800.0,0.028578]
[1761802979148,0.72816018,109810.0,109800.0,0.389378]
[1761802979358,0.38355,109810.0,109800.0,0.389378]
[1761802979662,0.38055,109810.0,109800.0,0.389378]
[1761802979963,0.38339,109810.0,109800.0,0.389378]
[1761802980656,0.72800018,109810.0,109800.0,0.389378]
[1761802980852,0.98339,109810.0,109800.0,0.389378]
[1761802981059,1.32780018,109810.0,109800.0,0.389378]
[1761802981652,1.32764018,109810.0,109800.0,0.389378]
[1761802981854,0.98303,109810.0,109800.0,0.389378]
[1761802982053,0.65535,109810.0,109800.0,0.389378]
[1761802982261,0.98303,109810.0,109800.0,0.389378]
[1761802982461,0.65535,109810.0,109800.0,0.389378]
[1761802982661,0.98295,109810.0,109800.0,0.389378]
[1761802983652,0.65535,109810.0,109800.0,0.389378]
[1761802983958,0.38287,109810.0,109800.0,0.389378]
[1761802984463,0.05535,109810.0,109800.0,0.389378]
[1761802984666,0.0303,109810.0,109800.0,0.389378]
[1761802984964,0.35758,109810.0,109800.0,0.41334181]
[1761802985168,0.38721,109810.0,109800.0,0.41334181]
[1761802985869,0.40454018,109810.0,109800.0,0.389378]
[1761802986068,0.73178018,109810.0,109800.0,0.389378]
[1761802986267,1.13397,109810.0,109800.0,0.389378]
[1761802986659,0.0303,109810.0,109800.0,0.41334181]
[1761802986854,0.33016,109810.0,109800.0,0.41334181]
[1761802987054,0.38759,109810.0,109800.0,0.389378]
[1761802987373,0.38759,109810.0,109800.0,0.39839712]
[1761802987374,0.06043,109810.0,109800.0,0.39839712]
[1761802987665,0.06043,109810.0,109800.0,0.42236093]
[1761802987857,0.35792,109810.0,109800.0,0.42236093]
[1761802988059,0.35788,109810.0,109800.0,0.42236093]
[1761802988564,0.003,109810.0,109800.0,0.84087586]
[1761802988754,0.01606,109840.0,109800.0,0.94009994]
[1761802988954,0.07349,109840.0,109830.0,0.3608]
[1761802989156,0.04386,109840.0,109830.0,0.389378]
[1761802989352,0.04386,109860.0,109830.0,0.73398818]
[1761802989662,0.42810018,109860.0,109850.0,0.3608]
[1761802989858,0.71398,109860.0,109840.0,0.3608]
[1761802990059,0.04386,109860.0,109850.0,0.3608]
[1761802990254,0.40061,109860.0,109850.0,0.38777059]
[1761802990650,0.34318,109860.0,109850.0,0.38777059]
[1761802990863,0.40069,109860.0,109850.0,0.38777059]
[1761802991869,0.74530018,109860.0,109850.0,0.38777059]
[1761802992065,0.74802018,109860.0,109850.0,0.38777059]
[1761802992260,1.34802018,109860.0,109850.0,0.3608]
[1761802992461,0.07349,109860.0,109850.0,0.3871088]
[1761802992860,0.01606,109880.0,109850.0,0.3871088]
[1761802993070,0.42082582,109900.0,109870.0,0.7216]
[1761802993071,0.08782582,109900.0,109870.0,0.7216]
[1761802993375,0.11745582,109900.0,109890.0,0.7216]
[1761802993579,0.44477582,109900.0,109890.0,0.7216]
[1761802993870,0.44477582,109900.0,109890.0,0.3608]
[1761802994068,0.44493582,109900.0,109890.0,0.3608]
[1761802994274,0.44489582,109900.0,109890.0,0.7216]
[1761802994564,0.45029582,109900.0,109890.0,0.3608]
[1761802994767,1.05301582,109900.0,109890.0,0.3608]
[1761802994966,0.797626,109900.0,109890.0,0.3608]
[1761802995266,0.45089582,109900.0,109890.0,0.3608]
[1761802995477,0.45085582,109900.0,109890.0,0.3608]
[1761802995969,0.795466,109900.0,109890.0,0.3608]
[1761802996163,0.45357582,109900.0,109890.0,0.3608]
[1761802996360,0.44785582,109900.0,109890.0,0.3608]
[1761802996562,0.792466,109900.0,109890.0,0.3608]
[1761802996873,1.392466,109900.0,109890.0,0.3608]
[1761802997174,0.05782,109890.0,109880.0,0.3608]
[1761802997368,0.02881,109890.0,109880.0,0.3608]
[1761802997575,0.38606,109890.0,109880.0,0.3608]
[1761802997763,0.38606,109890.0,109880.0,0.38708179]
[1761802998472,0.38606,109890.0,109880.0,0.3870962]
[1761802998672,0.02881,109890.0,109880.0,0.3870962]
[1761802998972,0.05782,109890.0,109880.0,0.3870962]
[1761802999174,0.38582,109890.0,109880.0,0.3870962]
[1761802999371,0.05782,109890.0,109880.0,0.3870962]
[1761802999577,0.38582,109890.0,109880.0,0.3870962]
[1761802999870,0.05882,109890.0,109880.0,0.3870962]
[1761803000067,0.38686,109890.0,109880.0,0.3870962]
[1761803000668,0.38678,109890.0,109880.0,0.3870962]
[1761803001571,0.05882,109890.0,109880.0,0.3870962]
[1761803001775,0.32876,109890.0,109880.0,0.3870962]
[1761803002177,0.35757,109890.0,109880.0,0.3608]
[1761803002378,0.35757,109890.0,109880.0,0.38715154]
[1761803002379,0.38658,109890.0,109880.0,0.38715154]
[1761803002672,0.3893,109890.0,109880.0,0.38715154]
[1761803002972,0.38658,109890.0,109880.0,0.38715154]
[1761803003181,0.3893,109890.0,109880.0,0.3608]
[1761803003475,0.73391018,109890.0,109880.0,0.3608]
[1761803003864,0.73119018,109890.0,109880.0,0.3608]
[1761803004373,0.05882,109890.0,109880.0,0.38719261]
[1761803004676,0.38638,109890.0,109880.0,0.38719261]
[1761803005063,0.05882,109890.0,109880.0,0.38719261]
[1761803005467,0.05882,109890.0,109880.0,0.3608]
[1761803005778,0.83349087,109890.0,109880.0,0.3608]
[1761803006081,0.16148069,109890.0,109880.0,0.3608]
[1761803006266,0.38622,109890.0,109880.0,0.38721878]
[1761803006575,0.3861,109890.0,109880.0,0.38721878]
[1761803006773,0.38606,109890.0,109880.0,0.38721878]
[1761803007175,0.40615018,109890.0,109880.0,0.02641878]
[1761803007360,1.33063018,109890.0,109880.0,0.02641878]
[1761803007565,0.05782,109870.0,109860.0,0.38462635]
[1761803007860,0.38506,109870.0,109860.0,0.38724295]
[1761803008064,0.38506,109870.0,109860.0,0.3608]
[1761803008574,0.38506,109870.0,109860.0,0.38724871]
[1761803008776,0.72967018,109870.0,109860.0,0.38724871]
[1761803008980,0.72967018,109870.0,109860.0,0.41116476]
[1761803009279,0.72967018,109870.0,109860.0,0.3608]
[1761803009669,0.38506,109870.0,109860.0,0.3608]
[1761803009874,0.73879842,109870.0,109860.0,0.38918392]
[1761803010067,0.82961087,109870.0,109860.0,0.38918392]
[1761803010266,1.43233087,109870.0,109860.0,0.38918392]
[1761803010766,0.98778,109870.0,109860.0,0.3628]
[1761803010971,1.00515018,109870.0,109860.0,0.3628]
[1761803011170,1.32935018,109870.0,109860.0,0.3628]
[1761803011978,1.32935018,109870.0,109860.0,0.38903382]
[1761803012366,0.73207018,109870.0,109860.0,0.02823382]
[1761803012674,0.05862582,109900.0,109860.0,0.75760056]
[1761803012887,0.05782,109890.0,109880.0,0.3608]
[1761803013061,0.05782,109890.0,109880.0,0.77179038]
[1761803013374,0.38558,109890.0,109880.0,0.77977088]
[1761803013879,0.38558,109890.0,109880.0,0.80371392]
[1761803014077,0.00999999,109940.0,109930.0,0.05443]
[1761803014267,0.40203,109940.0,109930.0,0.44096104]
[1761803015068,0.40203,109940.0,109930.0,0.80176104]
[1761803015371,0.60203,109940.0,109930.0,0.74733104]
[1761803015573,1.66549069,109940.0,109930.0,0.02573104]
[1761803015772,0.06828,109920.0,109910.0,0.3608]
[1761803015971,0.01619,109980.0,109950.0,0.0262]
[1761803016280,0.04277,109960.0,109950.0,0.07745073]
[1761803016477,0.38053,109970.0,109960.0,0.05226]
[1761803016676,0.05209,109970.0,109960.0,0.41306]
[1761803016983,0.38081,109970.0,109960.0,0.43824603]
[1761803017173,0.05209,109970.0,109960.0,0.387]
[1761803017368,0.05209,109970.0,109950.0,0.37002972]
[1761803017369,0.06828,109960.0,109950.0,0.3608]
[1761803017671,0.07128,109960.0,109950.0,0.43824968]
[1761803017874,0.07128,109960.0,109950.0,0.44824967]
[1761803018279,0.06828,109960.0,109950.0,0.44824967]
[1761803018466,0.64908,109960.0,109940.0,0.3608]
[1761803018786,0.64908,109960.0,109930.0,0.39472786]
[1761803018787,0.06828,109940.0,109930.0,0.3608]
[1761803018984,0.61452,109940.0,109930.0,0.38599689]
[1761803019171,0.97532,109940.0,109930.0,0.02519689]
[1761803019869,0.61452,109940.0,109930.0,0.38599689]
[1761803020078,0.943,109940.0,109930.0,0.38599689]
[1761803021082,0.943,109940.0,109930.0,0.02519689]
[1761803021276,0.946,109940.0,109930.0,0.02519689]
[1761803021767,0.926,109940.0,109930.0,0.02519689]
[1761803022082,1.2868,109940.0,109930.0,0.02519689]
[1761803023186,0.92568,109940.0,109930.0,0.41498689]
[1761803023387,0.92568,109940.0,109930.0,0.44104689]
[1761803024186,0.92548,109940.0,109930.0,0.44104689]
[1761803024482,0.59752,109940.0,109930.0,0.44104689]
[1761803024683,0.92532,109940.0,109930.0,0.44104689]
[1761803025370,0.90913,109940.0,109930.0,0.44104689]
[1761803025684,0.54924,109940.0,109930.0,0.44104689]
[1761803025880,0.87692,109940.0,109930.0,0.44104689]
[1761803026076,0.54924,109940.0,109930.0,0.44104689]
[1761803026387,0.87688,109940.0,109930.0,0.46497476]
[1761803026574,0.87684,109940.0,109930.0,0.46497476]
[1761803026774,0.54924,109940.0,109930.0,0.46497476]
[1761803026985,0.94512,109940.0,109930.0,0.40992476]
[1761803027386,0.94512,109940.0,109930.0,0.02519689]
[1761803027780,0.94512,109940.0,109930.0,0.05418689]
[1761803028694,1.28973018,109940.0,109930.0,0.02519689]
[1761803028990,1.65325018,109940.0,109930.0,0.02519689]
[1761803029192,1.65053018,109940.0,109920.0,0.3608]
[1761803029491,0.05209,109910.0,109900.0,0.38472787]
[1761803029786,0.37953,109910.0,109900.0,0.45137127]
[1761803029983,0.37953,109910.0,109900.0,0.4274434]
[1761803030183,0.93414018,109910.0,109900.0,0.3984534]
[1761803030777,1.29766018,109910.0,109900.0,0.0376534]
[1761803031088,0.05209,109890.0,109880.0,0.36087164]
[1761803031290,0.05209,109870.0,109860.0,0.38472787]
[1761803031587,0.01891,109900.0,109870.0,0.06504999]
[1761803031588,0.37699,109900.0,109870.0,0.06504999]
[1761803031793,0.38057,109890.0,109880.0,0.3608]
[1761803032184,0.38064164,109890.0,109880.0,0.3608]
[1761803033381,0.58578397,109890.0,109880.0,0.3608]
[1761803033581,0.58678397,109890.0,109880.0,0.3608]
[1761803033783,0.25830397,109890.0,109880.0,0.3608]
[1761803033989,0.38136164,109890.0,109880.0,0.41585]
[1761803034182,0.38136164,109890.0,109880.0,0.43980317]
[1761803034387,0.05316164,109890.0,109880.0,0.80060317]
[1761803034595,0.00107164,109890.0,109880.0,0.80060317]
[1761803034890,0.32931164,109890.0,109880.0,0.80855383]
[1761803035096,0.32931164,109890.0,109880.0,0.80056453]
[1761803035300,0.32931164,109890.0,109880.0,0.83246836]
[1761803036195,0.38124164,109890.0,109880.0,0.80056453]
[1761803036788,0.38024164,109890.0,109880.0,0.80256453]
[1761803037294,0.58538397,109890.0,109880.0,0.3628]
[1761803037798,0.58538397,109890.0,109880.0,0.37279999]
[1761803037998,0.58538397,109890.0,109880.0,0.3628]
[1761803038182,0.58538397,109890.0,109880.0,0.37279999]
[1761803039096,1.04884466,109890.0,109880.0,0.002]
[1761803039285,1.04884466,109890.0,109850.0,0.07975957]
[1761803039286,1.26398699,109890.0,109850.0,0.38471453]
[1761803039492,0.27342233,109860.0,109850.0,0.41585]
[1761803039790,0.39615164,109860.0,109850.0,0.41585]
[1761803040391,0.60129397,109860.0,109850.0,0.3608]
[1761803040594,0.60129397,109860.0,109850.0,0.3658]
[1761803040795,0.60129397,109860.0,109850.0,0.39479]
[1761803041093,0.39615164,109860.0,109850.0,0.43084999]
[1761803041296,0.39611164,109860.0,109850.0,0.43084999]
[1761803041493,0.39611164,109860.0,109850.0,0.42085]
[1761803041697,0.60125397,109860.0,109850.0,0.3628]
[1761803042401,0.60397397,109860.0,109850.0,0.3628]
[1761803042904,0.60125397,109860.0,109850.0,0.3628]
[1761803043208,0.80101397,109860.0,109850.0,0.38703731]
[1761803043396,0.27349397,109860.0,109850.0,0.44008731]
[1761803043603,0.06835164,109860.0,109850.0,0.44008731]
[1761803043906,0.39583164,109860.0,109850.0,0.44008731]
[1761803045102,0.39583164,109860.0,109850.0,0.4500873]
[1761803045607,0.60097397,109860.0,109850.0,0.4500873]
[1761803045809,0.27349397,109860.0,109850.0,0.4500873]
[1761803046005,0.60073397,109860.0,109850.0,0.4500873]
[1761803046303,0.60069397,109860.0,109850.0,0.4500873]
[1761803046501,0.60069397,109860.0,109850.0,0.42584999]
[1761803046807,0.60065397,109860.0,109850.0,0.45006418]
[1761803047104,0.60065397,109860.0,109850.0,0.41585]
[1761803047292,0.60065397,109860.0,109850.0,0.3608]
[1761803047706,0.27349397,109860.0,109850.0,0.37079999]
[1761803047911,0.60045397,109860.0,109850.0,0.42111999]
[1761803048804,7.164e-05,109860.0,109850.0,0.65048177]
[1761803049006,0.25655233,109890.0,109880.0,0.05032]
[1761803049205,0.25655233,109890.0,109880.0,0.41112]
[1761803049206,0.58379233,109890.0,109880.0,0.41112]
[1761803049401,0.58379233,109890.0,109880.0,0.38713]
[1761803049906,0.58379233,109890.0,109880.0,0.3608]
[1761803050294,0.25655233,109890.0,109880.0,0.38713]
[1761803050489,0.25655233,109890.0,109880.0,0.41112]
[1761803050695,0.58387233,109890.0,109880.0,0.41112]
[1761803051310,0.58387233,109890.0,109880.0,0.3608]
[1761803051604,0.58787233,109890.0,109880.0,0.38515291]
[1761803052401,0.59059233,109890.0,109880.0,0.38515291]
[1761803052606,0.58787233,109890.0,109880.0,0.38515291]
[1761803052799,0.58787233,109890.0,109870.0,0.3608]
[1761803052800,0.02694,109880.0,109870.0,0.3608]
[1761803053005,0.27116233,109880.0,109870.0,0.3608]
[1761803053209,0.06602,109880.0,109870.0,0.43548922]
[1761803053408,0.26055233,109890.0,109880.0,0.05032]
[1761803053610,0.58795233,109890.0,109880.0,0.43548922]
[1761803053908,0.58795233,109890.0,109880.0,0.43560922]
[1761803054111,0.58787233,109890.0,109880.0,0.43560922]
[1761803054314,0.25655233,109890.0,109880.0,0.43560922]
[1761803054606,0.02352,109900.0,109890.0,0.04946]
[1761803054812,0.05107,109910.0,109900.0,0.04946]
[1761803055000,0.60349233,109910.0,109900.0,0.41026]
[1761803055304,0.60349233,109910.0,109900.0,0.3608]
[1761803055912,0.60349233,109910.0,109900.0,0.38615]
[1761803056508,0.60349233,109910.0,109900.0,0.3608]
[1761803057309,0.61049233,109910.0,109900.0,0.3608]
[1761803057904,0.61049233,109910.0,109900.0,0.41026]
[1761803058100,0.0638,109900.0,109890.0,0.00999999]
[1761803058304,0.26894233,109900.0,109890.0,0.03442894]
[1761803058505,0.59586233,109900.0,109890.0,0.03442894]
[1761803058708,0.95938233,109900.0,109890.0,0.03442894]
[1761803059008,0.0638,109880.0,109870.0,0.43417453]
[1761803059308,0.59582233,109880.0,109870.0,0.45860562]
[1761803060510,0.59582233,109880.0,109870.0,0.40914562]
[1761803061010,0.59582233,109880.0,109870.0,0.46860561]
[1761803061314,0.39056,109880.0,109870.0,0.46860561]
[1761803062003,0.39356,109880.0,109870.0,0.46860561]
[1761803062203,0.0668,109880.0,109870.0,0.46860561]
[1761803062713,0.3934,109880.0,109870.0,0.46860561]
[1761803063111,0.0668,109880.0,109870.0,0.46860561]
[1761803063309,0.39328,109880.0,109870.0,0.46860561]
[1761803063508,0.0668,109880.0,109870.0,0.46860561]
[1761803063712,0.39328,109880.0,109870.0,0.46860561]
[1761803064104,0.39324,109880.0,109870.0,0.46860561]
[1761803064306,0.3932,109880.0,109870.0,0.46860561]
[1761803064509,0.003,109880.0,109870.0,1.27374794]
[1761803064806,0.0638,109900.0,109890.0,0.04946]
[1761803065014,0.59534233,109900.0,109890.0,0.38523109]
[1761803065407,0.59534233,109900.0,109890.0,0.43469109]
[1761803065408,0.02352,109900.0,109890.0,0.43469109]
[1761803065609,0.25621233,109910.0,109900.0,0.05945999]
[1761803065807,0.59253233,109910.0,109900.0,0.37079999]
[1761803066709,0.59253233,109910.0,109900.0,0.00999999]
[1761803066910,0.0638,109900.0,109890.0,0.3608]
[1761803067110,0.26894233,109900.0,109890.0,0.385125]
[1761803067310,0.27394233,109900.0,109890.0,0.385125]
[1761803067909,0.26894233,109900.0,109890.0,0.385125]
[1761803068619,0.27294233,109900.0,109890.0,0.385125]
[1761803069417,0.27294233,109900.0,109890.0,0.434585]
[1761803069418,0.0678,109900.0,109890.0,0.434585]
[1761803069922,0.59906233,109900.0,109890.0,0.434585]
[1761803070519,0.59906233,109900.0,109890.0,0.385125]
[1761803071015,0.59906233,109900.0,109890.0,0.434585]
[1761803071221,0.27294233,109900.0,109890.0,0.434585]
[1761803071616,0.57383233,109900.0,109890.0,0.434585]
[1761803071821,0.33004,109900.0,109890.0,0.434585]
[1761803072022,0.35356,109900.0,109890.0,0.434585]
[1761803072508,0.02752,109900.0,109890.0,0.434585]
[1761803072716,0.35352,109900.0,109890.0,0.434585]
[1761803072914,0.004,109900.0,109890.0,0.434585]
[1761803073212,0.32996,109900.0,109890.0,0.434585]
[1761803073910,0.32996,109900.0,109890.0,1.05853432]
[1761803074111,0.004,109900.0,109890.0,1.05853432]
[1761803074324,0.0024,109910.0,109890.0,1.05853432]
[1761803074325,0.0024,109910.0,109900.0,0.06462]
[1761803074520,0.32824,109910.0,109900.0,0.449745]
[1761803074718,0.0024,109910.0,109900.0,0.45974499]
[1761803075023,1.15078,109950.0,109940.0,0.04649]
[1761803075024,0.02471,109950.0,109940.0,0.04649]
[1761803075229,0.38437,109950.0,109940.0,0.43158723]
[1761803075614,0.58951233,109950.0,109940.0,0.43158723]
[1761803075922,0.38437,109950.0,109940.0,0.39509722]
[1761803076224,0.58951233,109950.0,109940.0,0.44158722]
[1761803076613,0.0637,109960.0,109950.0,0.04649]
[1761803076826,0.65460233,109960.0,109950.0,0.38443]
[1761803077625,0.32884233,109960.0,109950.0,0.38443]
[1761803077825,0.65444233,109960.0,109950.0,0.38443]
[1761803078028,0.4493,109960.0,109950.0,0.38443]
[1761803078227,0.65444233,109960.0,109950.0,0.38443]
[1761803078423,0.65944233,109960.0,109950.0,0.02363]
[1761803078629,0.04857,109950.0,109940.0,0.39442999]
[1761803078825,0.25371233,109950.0,109940.0,0.39442999]
[1761803079722,0.25371233,109950.0,109940.0,0.37079999]
[1761803079928,0.04857,109930.0,109920.0,0.3608]
[1761803080227,0.57923233,109930.0,109920.0,0.38505117]
[1761803080930,0.25371233,109930.0,109920.0,0.38505117]
[1761803081538,0.57907233,109930.0,109920.0,0.38505117]
[1761803081830,0.04957,109930.0,109920.0,0.43154117]
[1761803082033,0.001,109930.0,109920.0,0.43585117]
[1761803082225,0.3264,109930.0,109920.0,0.43585117]
[1761803083235,0.3264,109930.0,109920.0,0.43154117]
[1761803083424,0.001,109930.0,109920.0,0.43154117]
[1761803083625,0.32628,109930.0,109920.0,0.43154117]
[1761803084734,0.001,109930.0,109920.0,0.43154117]
[1761803085129,0.32612,109930.0,109920.0,0.43154117]
[1761803086437,0.0637,109980.0,109970.0,0.04649]
[1761803086734,0.37353,109980.0,109970.0,0.76809]
[1761803087241,0.21901233,110000.0,109970.0,0.76809]
[1761803087442,0.32628,109980.0,109970.0,0.40729]
[1761803087739,0.37485,109980.0,109970.0,0.76809]
[1761803087924,0.38185,109980.0,109970.0,0.76809]
[1761803088322,0.05557,109980.0,109970.0,0.76809]
[1761803088832,0.38181,109980.0,109970.0,0.76809]
[1761803089342,0.33324,109980.0,109970.0,0.76809]
[1761803090743,0.007,109980.0,109970.0,0.79221983]
[1761803090936,0.33292,109980.0,109970.0,0.79221983]
[1761803091132,0.007,109980.0,109970.0,0.79221983]
[1761803091339,0.33292,109980.0,109970.0,0.79221983]
[1761803092442,0.35763,109980.0,109970.0,0.79221983]
[1761803092743,0.38149,109980.0,109970.0,0.80221982]
[1761803092937,0.38149,109980.0,109970.0,0.79221983]
[1761803093242,0.60050233,109980.0,109970.0,0.77808999]
[1761803093636,0.39536,109980.0,109970.0,0.77808999]
[1761803093943,0.007,109980.0,109970.0,0.98595232]
[1761803094136,0.333,109980.0,109970.0,0.78080999]
[1761803094340,0.333,109980.0,109970.0,0.77808999]
[1761803095044,0.39544,109980.0,109970.0,0.80168351]
[1761803095240,0.39544,109980.0,109970.0,0.79168352]
[1761803095442,0.39544,109980.0,109970.0,2.30168351]
[1761803095632,0.333,109980.0,109970.0,2.30168351]
[1761803095945,0.3332,109980.0,109970.0,0.80168351]
[1761803096143,0.33316,109980.0,109970.0,0.80168351]
[1761803097238,0.3956,109980.0,109970.0,0.80168351]
[1761803097435,0.35787,109980.0,109970.0,0.80168351]
[1761803098745,0.007,109980.0,109970.0,0.80168351]
[1761803098945,0.3328,109980.0,109970.0,0.80168351]
[1761803099148,0.007,109980.0,109970.0,0.80168351]
[1761803099329,0.39524,109980.0,109970.0,0.80168351]
[1761803100836,0.73848834,109980.0,109970.0,0.74519352]
[1761803101031,0.73848834,109980.0,109960.0,0.3608]
[1761803101032,0.74120834,109980.0,109960.0,0.3608]
[1761803101235,0.04857,109970.0,109960.0,0.44088573]
[1761803101740,0.35079,109970.0,109960.0,0.44088573]
[1761803101938,0.007,109980.0,109970.0,0.04649]
[1761803102138,0.02471,109990.0,109980.0,0.05648999]
[1761803102340,0.71781834,109990.0,109980.0,0.37079999]
[1761803102539,0.71781834,109990.0,109980.0,0.00999999]
[1761803103445,0.06244,109980.0,109970.0,0.3608]
[1761803103655,0.06244,109980.0,109970.0,0.41728999]
[1761803103951,0.38836,109980.0,109970.0,0.44094505]
[1761803104446,0.38836,109980.0,109970.0,0.37079999]
[1761803104637,0.38836,109980.0,109970.0,0.39385682]
[1761803104840,0.73160834,109980.0,109970.0,0.38385683]
[1761803105045,1.34160834,109980.0,109960.0,0.3608]
[1761803105249,0.38770834,109970.0,109960.0,0.3837681]
[1761803105445,0.39042834,109970.0,109960.0,0.3837681]
[1761803105634,0.04446,109970.0,109960.0,0.4072481]
[1761803105840,0.37534,109970.0,109960.0,0.4286081]
[1761803107443,0.37534,109970.0,109960.0,0.43860809]
[1761803107849,0.04946,109970.0,109960.0,0.43860809]
[1761803108051,0.37534,109970.0,109960.0,0.43860809]
[1761803109240,0.04946,109970.0,109960.0,0.39376809]
[1761803109435,0.37514,109970.0,109960.0,0.39376809]
[1761803109638,0.37514,109970.0,109960.0,0.43860809]
[1761803109952,1.33838834,109970.0,109960.0,0.0230681]
[1761803110151,0.99514,109970.0,109960.0,0.0230681]
[1761803110446,1.33838834,109970.0,109960.0,0.0230681]
[1761803111855,1.31838834,109970.0,109960.0,0.0230681]
[1761803112049,1.07918834,109970.0,109960.0,0.0230681]
[1761803112351,1.09190834,109970.0,109960.0,0.0230681]
[1761803112654,0.05789,109960.0,109950.0,0.40564]
[1761803112843,0.40113834,109960.0,109950.0,0.38315595]
[1761803113043,0.05789,109960.0,109950.0,0.38315595]
[1761803113356,0.38317,109960.0,109950.0,0.45194527]
[1761803113754,1.19715903,109960.0,109950.0,0.02235595]
[1761803113961,1.19987903,109960.0,109950.0,0.02235595]
[1761803114449,0.0428,109950.0,109940.0,0.02394932]
[1761803114650,0.38876834,109950.0,109940.0,0.02394932]
[1761803115044,0.39876834,109950.0,109940.0,0.02394932]
[1761803115247,0.38876834,109950.0,109940.0,0.02394932]
[1761803115644,1.08598903,109950.0,109940.0,0.02394932]
[1761803115854,0.05648,109940.0,109930.0,0.41530847]
[1761803116056,0.39972834,109940.0,109930.0,0.38340464]
[1761803116353,0.39972834,109940.0,109930.0,0.39270383]
[1761803116554,0.39972834,109940.0,109930.0,0.3608]
[1761803118157,0.39972834,109940.0,109930.0,0.37079999]
[1761803118459,0.72660834,109940.0,109930.0,0.37079999]
[1761803118662,0.72660834,109940.0,109930.0,0.3608]
[1761803118861,0.72652834,109940.0,109930.0,0.37079999]
[1761803119051,0.72924834,109940.0,109930.0,0.37079999]
[1761803119459,0.40444834,109940.0,109930.0,0.00999999]
[1761803119660,0.0428,109930.0,109920.0,0.40270382]
[1761803120057,0.0428,109930.0,109920.0,0.44710382]
[1761803120251,0.36748,109930.0,109920.0,0.44710382]
[1761803120957,0.36748,109930.0,109920.0,0.43710383]
[1761803121261,0.36848,109930.0,109920.0,0.44710382]
[1761803121463,0.36848,109930.0,109920.0,0.41519999]
[1761803121654,0.36848,109930.0,109920.0,0.42446063]
[1761803122057,0.001,109930.0,109920.0,0.43033063]
[1761803122262,0.32548,109930.0,109920.0,0.43033063]
[1761803124161,0.36828,109930.0,109920.0,0.42446063]
[1761803124365,0.71152834,109930.0,109920.0,0.37079999]
[1761803125775,0.01343,109960.0,109920.0,0.76524833]
[1761803125953,0.367,109950.0,109940.0,0.4052]
[1761803126571,1.31918251,109950.0,109920.0,0.00999999]
[1761803126749,0.38604834,109930.0,109920.0,0.00999999]
[1761803126956,0.05648,109920.0,109910.0,0.40473263]
[1761803127466,0.05648,109920.0,109910.0,0.43649262]
[1761803127657,0.34662,109920.0,109910.0,0.43649262]
[1761803128061,0.05648,109940.0,109930.0,0.02264]
[1761803128374,0.38168,109940.0,109930.0,0.41519999]
[1761803129166,0.05648,109940.0,109930.0,0.41519999]
[1761803129457,0.3816,109940.0,109930.0,0.41519999]
[1761803130367,0.3836,109940.0,109930.0,0.41519999]
[1761803130566,0.05848,109940.0,109930.0,0.41519999]
[1761803130868,0.38356,109940.0,109930.0,0.41519999]
[1761803131268,0.38348,109940.0,109930.0,0.41519999]
[1761803131470,0.05848,109940.0,109930.0,0.41519999]
[1761803131666,0.3834,109940.0,109930.0,0.41519999]
[1761803132370,0.05848,109940.0,109930.0,0.41519999]
[1761803132572,0.38336,109940.0,109930.0,0.41519999]
[1761803133072,0.38328,109940.0,109930.0,0.41519999]